fUSD/lending_fUSD_20240129
["ID","MTS","AMOUNT","RATE_DAILY","PERIOD"]
[312949955,1706509837761,-7949.96346505,0.000229,2]
[312949956,1706509837793,-1205.16319633,0.000229,2]
[312949957,1706509837802,-173.08721063,0.000229,2]
[312949958,1706509837814,-3041.0993593,0.000229,2]
[312949959,1706509837825,-4577.5,0.000229,2]
[312949960,1706509837845,-1363.44009145,0.000229,2]
[312949961,1706509837854,-9155.12666138,0.000229,2]
[312949962,1706509837863,-9155.12666138,0.000229,2]
[312949963,1706509837872,-1843.9755055,0.000229,2]
[312949964,1706509837888,-7311.15115588,0.000229,2]
[312949965,1706509837897,-3850.48513007,0.000229,2]
[312949966,1706509837933,-752.94,0.000229,2]
[312949979,1706509839987,-865.44923091,0.000229,2]
[312949980,1706509839998,-322.87653265,0.000229,2]
[312949981,1706509840010,-280.69400187,0.000229,2]
[312949982,1706509840316,-301.92261199,0.000229,2]
[312949983,1706509840329,-577.44155037,0.000229,2]
[312949984,1706509840344,-2203.31760352,0.000229,2]
[312949985,1706509840353,-4549.00066065,0.000229,2]
[312949986,1706509840850,-374.9854947,0.000229,2]
[312949987,1706509840861,-321.64411836,0.000229,2]
[312950006,1706509843653,-3909.49638767,0.000229,2]
[312950007,1706509843663,-2089.77143303,0.000229,2]
[312950008,1706509843761,-7065.35522835,0.000229,2]
[312950009,1706509843771,-9155.12666138,0.000229,2]
[312950010,1706509843780,-6451.39164336,0.000229,2]
[312950020,1706509845969,-3090.7032,0.00022899,2]
[312950021,1706509845979,-2703.73501802,0.000229,2]
[312950022,1706509845990,-9155.12666138,0.000229,2]
[312950023,1706509845999,-9155.12666138,0.000229,2]
[312950024,1706509846009,-9155.12666138,0.000229,2]
[312950025,1706509846019,-9155.12666138,0.000229,2]
[312950026,1706509846029,-9155.12666138,0.000229,2]
[312950027,1706509846039,-9155.12666138,0.000229,2]
[312950028,1706509846049,-9155.12666138,0.000229,2]
[312950029,1706509846059,-9155.12666138,0.000229,2]
[312950030,1706509846068,-485.22059686,0.000229,2]
[312950031,1706509846077,-177.72486556,0.000229,2]
[312950032,1706509846087,-166.69,0.00022958,2]
[312950033,1706509846098,-771.01,0.00022997,2]
[312950034,1706509846111,-1067.57920101,0.00022998,2]
[312950035,1706509846121,-3864.89732564,0.00022998,2]
[312950036,1706509846131,-409.19503298,0.00022998,2]
[312950037,1706509846142,-4267.78420734,0.00022998,2]
[312950038,1706510061630,214.13,0.00020085,2]
[312950039,1706510088738,10000.0,0.00021998,2]
[312950040,1706510167367,840.0,0.00021961,2]
[312950041,1706510272548,7450.66,0.0002194,2]
[312950042,1706510284158,637.74,0.0002194,2]
[312950043,1706510306465,156.62,0.00021938,2]
[312950044,1706510378436,166.69,0.00021994,2]
[312950045,1706510424789,1661.39045732,0.00022028,2]
[312950046,1706510502865,732.18690129,0.00021,2]
[312950047,1706510505236,843.77195368,0.00022028,4]
[312950048,1706510505259,13.14451712,0.00022028,4]
[312950049,1706510514652,829.0905,0.00021927,14]
[312950050,1706510518854,732.18690129,0.00021,2]
[312950051,1706510538853,729.99198612,0.00021,2]
[312950052,1706510550398,250.0,0.00021602,2]
[312950053,1706510587855,23900.0,0.00021307,2]
[312950054,1706510589765,534.42411814,0.00021602,2]
[312950055,1706510592965,1100.14824388,0.00021602,2]
[312950056,1706510595070,858.66470521,0.00021602,2]
[312950057,1706510595193,6097.38513295,0.00021602,2]
[312950058,1706510595303,808.3198501,0.00021602,2]
[312950059,1706510595334,19009.56308954,0.00021602,2]
[312950060,1706510596215,5202.33214498,0.00021602,2]
[312950061,1706510596923,848.51334281,0.00021602,2]
[312950062,1706510597896,2185.31764007,0.00021386,2]
[312950063,1706510598323,361.93405445,0.00021602,2]
[312950064,1706510598678,500.0,0.00021602,2]
[312950065,1706510599486,1521.34,0.00021477,2]
[312950066,1706510599761,1122.3360965,0.00021602,2]
[312950067,1706510602419,2327.96064877,0.00021602,2]
[312950068,1706510603765,303.46341398,0.00021602,2]
[312950069,1706510609000,1108.62585777,0.00021602,2]
[312950070,1706510609452,808.3198501,0.00021602,2]
[312950071,1706510611315,19009.56308954,0.00021602,2]
[312950072,1706510612217,5202.33214498,0.00021602,2]
[312950073,1706510613321,858.66470521,0.00021602,2]
[312950074,1706510613368,2992.35149707,0.00021602,2]
[312950075,1706510613867,2185.31764007,0.00021386,2]
[312950076,1706510614322,361.93405445,0.00021602,2]
[312950077,1706510614676,500.0,0.00021602,2]
[312950078,1706510616920,848.51334281,0.00021602,2]
[312950079,1706510617761,1122.3360965,0.00021602,2]
[312950080,1706510618407,2327.96064877,0.00021602,2]
[312950081,1706510627314,808.3198501,0.00021602,2]
[312950082,1706510629314,4118.73834426,0.00021602,2]
[312950083,1706510631920,2185.31764007,0.00021386,2]
[312950084,1706510632363,5202.33214498,0.00021602,2]
[312950085,1706510632397,425.16556619,0.00021602,2]
[312950086,1706510634676,500.0,0.00021602,2]
[312950087,1706510635243,858.66470521,0.00021602,2]
[312950088,1706510636921,848.51334281,0.00021602,2]
[312950089,1706510637762,698.45315822,0.00021602,2]
[312950090,1706510640405,2327.96064877,0.00021602,2]
[312950091,1706510647313,808.3198501,0.00021602,2]
[312950092,1706510647900,1420.84346372,0.00021386,2]
[312950093,1706510650224,5202.33214498,0.00021602,2]
[312950094,1706510651103,848.51334281,0.00021602,2]
[312950095,1706510652683,500.0,0.00021602,2]
[312950096,1706510657079,858.66470521,0.00021602,2]
[312950097,1706510659651,328.0,0.00021354,2]
[312950098,1706510660425,2327.96064877,0.00021602,2]
[312950099,1706510663081,4256.45,0.00021354,2]
[312950100,1706510665322,808.3198501,0.00021602,2]
[312950101,1706510666229,4840.88819173,0.00021602,2]
[312950102,1706510668682,491.95382512,0.00021602,2]
[312950103,1706510673167,858.66470521,0.00021602,2]
[312950104,1706510676932,848.51334281,0.00021602,2]
[312950105,1706510678413,2327.96064877,0.00021602,2]
[312950106,1706510680516,1905.22,0.00021354,2]
[312950107,1706510687310,808.3198501,0.00021602,2]
[312950108,1706510691086,701.47543976,0.00021602,2]
[312950109,1706510692934,848.51334281,0.00021602,2]
[312950110,1706510696416,2327.96064877,0.00021602,2]
[312950111,1706510701093,500.0,0.0002163,2]
[312950112,1706510702623,750.0,0.00021267,2]
[312950113,1706510703320,808.3198501,0.00021602,2]
[312950114,1706510703964,526.33571764,0.0002163,2]
[312950115,1706510710940,421.60746309,0.00021602,2]
[312950116,1706510714015,2327.96064877,0.00021602,2]
[312950117,1706510714943,1000.0,0.0002163,2]
[312950118,1706510716044,386.15,0.00021421,2]
[312950119,1706510717914,868.99398571,0.0002163,2]
[312950120,1706510719318,869.83474751,0.00021602,2]
[312950121,1706510725978,698.46857632,0.0002163,2]
[312950122,1706510727871,583.40785735,0.0002163,2]
[312950123,1706510728712,377.7520411,0.0002163,2]
[312950124,1706510730322,155.0,0.0002163,2]
[312950125,1706510732470,768.37933403,0.0002163,2]
[312950126,1706510732732,2327.96064877,0.00021602,2]
[312950127,1706510733268,3868.07725427,0.0002163,2]
[312950128,1706510734827,690.1,0.00021531,2]
[312950129,1706510737254,630.29094218,0.0002163,2]
[312950130,1706510740673,155.0,0.0002163,2]
[312950131,1706510748430,2327.96064877,0.00021602,2]
[312950132,1706510749737,199.69563475,0.0002163,2]
[312950133,1706510752472,2508.65791891,0.0002163,2]
[312950134,1706510766465,2327.96064877,0.00021531,2]
[312950135,1706510771635,500.0,0.0002163,2]
[312950136,1706510774523,22660.37793498,0.0002163,2]
[312950137,1706510778689,873.82,0.00021527,2]
[312950138,1706510786419,1945.99041422,0.00021531,2]
[312950139,1706510788240,1439.0,0.0002163,2]
[312950140,1706510794203,1000.0,0.0002163,2]
[312950141,1706510794457,868.99398571,0.0002163,2]
[312950142,1706510802952,760.46,0.00021564,2]
[312950143,1706510812592,3197.13386433,0.0002163,2]
[312950144,1706510822993,2508.65791891,0.0002163,2]
[312950145,1706510824248,172.28726256,0.0002163,2]
[312950146,1706510834948,2605.49270958,0.0002163,2]
[312950147,1706510856108,500.0,0.0002163,2]
[312950148,1706510865954,1000.0,0.0002163,2]
[312950149,1706510902033,-3197.13386433,0.00021631,2]
[312950150,1706510902056,-698.46857632,0.00021632,2]
[312950151,1706510902080,-868.99398571,0.00021632,2]
[312950152,1706510902104,-150.0,0.00021644,2]
[312950153,1706510902126,-10524.97012672,0.00021645,2]
[312950154,1706510902149,-2705.0,0.00021646,2]
[312950155,1706510902171,-762.45,0.0002169,2]
[312950156,1706510902195,-280.06101534,0.0002169,2]
[312950157,1706510902222,-384.66969793,0.00021697,2]
[312950158,1706510902246,-3733.12106512,0.00021707,2]
[312950159,1706510902269,-710.4316209,0.00021753,2]
[312950160,1706510902293,-7869.27,0.00021849,2]
[312950161,1706510902315,-771.01,0.00021849,2]
[312950162,1706510902339,-250.0,0.00021918,2]
[312950163,1706510902362,-869.84125155,0.00021927,2]
[312950164,1706510902385,-338.60954268,0.00022028,2]
[312950165,1706510902408,-156.07670342,0.00022028,2]
[312950166,1706510902434,-563.34190194,0.00022028,2]
[312950167,1706510902458,-156.64,0.0002214,2]
[312950168,1706510902483,-2651.2578,0.00022205,2]
[312950169,1706510902509,-156.64,0.00022305,2]
[312950170,1706510902532,-156.64,0.0002247,2]
[312950171,1706510902554,-499.99,0.00022634,2]
[312950172,1706510902578,-156.64,0.00022634,2]
[312950173,1706510902601,-14767.32384197,0.00022667,2]
[312950174,1706510902623,-5347.23452715,0.00022766,2]
[312950175,1706510902645,-284.7408929,0.00022768,2]
[312950176,1706510902668,-31303.0,0.0002277,2]
[312950177,1706510902693,-150.0,0.00022795,2]
[312950178,1706510902716,-156.64,0.00022799,2]
[312950179,1706510902739,-1000.0,0.000228,2]
[312950180,1706510902761,-326.3529,0.000228,2]
[312950181,1706510902784,-371.8586,0.000228,2]
[312950182,1706510902806,-207.1896,0.000228,2]
[312950183,1706510902828,-737.3024,0.000228,2]
[312950184,1706510902850,-20023.9152,0.000228,2]
[312950185,1706510902872,-625.0,0.000228,2]
[312950186,1706510902897,-150.0,0.00022895,2]
[312950187,1706510902919,-203.41761573,0.00022896,2]
[312950188,1706510902941,-174.09878433,0.00022896,2]
[312950189,1706510902964,-2605.49270958,0.00022896,2]
[312950190,1706510902987,-500.0,0.00022896,2]
[312950191,1706510903010,-245.50069736,0.00022896,2]
[312950192,1706510903033,-630.03816536,0.00022897,2]
[312950193,1706510903058,-690.51155512,0.00022898,2]
[312950194,1706510903277,-867.54517765,0.00022898,2]
[312950195,1706510903302,-671.94363692,0.00022898,2]
[312950196,1706510903326,-699.35577929,0.00022898,2]
[312950197,1706510903348,-760.31642859,0.00022898,2]
[312950198,1706510903372,-584.01775078,0.00022898,2]
[312950199,1706510903396,-19034.57802151,0.00022898,2]
[312950200,1706510903420,-7970.46327476,0.00022898,2]
[312950201,1706510918212,641.45454408,0.0002163,2]
[312950202,1706510920690,641.45454408,0.0002163,2]
[312950203,1706510984806,165.06,0.00020521,2]
[312950227,1706511037621,-424.88308538,0.00022586,2]
[312950228,1706511038380,-10100.08704134,0.00022586,2]
[312950229,1706511038390,-3197.13386433,0.00022586,2]
[312950230,1706511038399,-2508.65791891,0.00022587,2]
[312950231,1706511038409,-2605.49270958,0.00022587,2]
[312950232,1706511038418,-691.03234566,0.00022588,2]
[312950233,1706511038427,-500.0,0.00022589,2]
[312950234,1706511038436,-166.7,0.0002259,2]
[312950235,1706511038445,-196.3812,0.000227,2]
[312950236,1706511038457,-156.64,0.00022789,2]
[312950237,1706511038466,-2000.0,0.00022798,2]
[312950238,1706511038475,-160.00218042,0.00022798,2]
[312950239,1706511038485,-25455.71277408,0.00022898,2]
[312950240,1706511038494,-538.25846722,0.00022898,2]
[312950241,1706511038505,-3867.56512871,0.00022898,2]
[312950242,1706511038515,-554.25128615,0.00022898,2]
[312950243,1706511038525,-273.24046998,0.00022898,2]
[312950244,1706511038534,-766.79412322,0.00022898,2]
[312950245,1706511038543,-464.11892885,0.00022898,2]
[312950246,1706511038552,-157.19282853,0.00022898,2]
[312950247,1706511038562,-980.48368829,0.00022898,2]
[312950248,1706511038571,-872.16221922,0.00022898,2]
[312950249,1706511038580,-696.09921061,0.00022899,2]
[312950250,1706511038590,-765.938,0.000229,2]
[312950251,1706511038600,-87367.3783,0.000229,2]
[312950252,1706511038609,-25163.7381,0.000229,2]
[312950253,1706511038619,-170.64638635,0.000229,2]
[312950254,1706511038630,-1767.91634608,0.000229,2]
[312950255,1706511038639,-160.00218042,0.000229,2]
[312950256,1706511038648,-177.72486556,0.000229,2]
[312950257,1706511038658,-522.60835424,0.000229,2]
[312950258,1706511038668,-191.122,0.0002299,2]
[312950259,1706511038677,-499.99,0.0002299,2]
[312950260,1706511038686,-2278.788,0.0002299,2]
[312950261,1706511038695,-202.11531144,0.0002299,2]
[312950262,1706511038705,-161154.02166815,0.00022997,2]
[312950263,1706511038715,-219.85065101,0.00022998,2]
[312950264,1706511038724,-7421.30474463,0.00022998,2]
[312950265,1706511038734,-155.0,0.00022998,2]
[312950266,1706511038743,-10577.46619619,0.00022998,2]
[312950267,1706511038752,-162.96938674,0.00022998,2]
[312950268,1706511038762,-477.82427138,0.00022998,2]
[312950269,1706511038771,-2911.54226959,0.00022998,2]
[312950270,1706511038780,-172.43629544,0.00022998,2]
[312950271,1706511038790,-804.42472161,0.00022998,2]
[312950272,1706511038798,-3673.74028876,0.00022998,2]
[312950273,1706511038808,-201.03002104,0.00022998,2]
[312950274,1706511038817,-402.95738096,0.00022998,2]
[312950275,1706511038826,-464.23555714,0.00022998,2]
[312950276,1706511038835,-4674.98313437,0.00022998,2]
[312950277,1706511038845,-1308.92124474,0.00022998,2]
[312950278,1706511038854,-1726.06971811,0.00022998,2]
[312950279,1706511038863,-178.4626768,0.00022998,2]
[312950280,1706511038873,-156.01080785,0.00022998,2]
[312950281,1706511038882,-21756.04657509,0.00022998,2]
[312950282,1706511038892,-151.91262792,0.00022999,2]
[312950283,1706511038901,-825.27406003,0.00022999,2]
[312950284,1706511038910,-461.23374655,0.00022999,2]
[312950285,1706511038919,-412.09028395,0.00022999,2]
[312950286,1706511038929,-550.0,0.00022999,2]
[312950287,1706511038938,-387.1,0.00022999,2]
[312950288,1706511038947,-1296325.40564567,0.00023,2]
[312950291,1706511040135,-1293.85122542,0.00023,2]
[312950292,1706511041116,-238454.81646196,0.00023,2]
[312950308,1706511042645,-500.0,0.00022585,2]
[312950309,1706511042655,-3415.39565918,0.00023,2]
[312950310,1706511042755,-3384.87796955,0.00023,2]
[312950311,1706511042812,-457.14295137,0.000229,2]
[312950312,1706511042990,-28.07764549,0.000229,2]
[312950313,1706511043000,-16211.65475447,0.00023,2]
[312950314,1706511043026,-111588.78367018,0.00023,2]
[312950316,1706511043047,-315.27435692,0.00023,2]
[312950317,1706511045715,-2469.52919998,0.00022897,2]
[312950318,1706511045763,-511.97465506,0.00022897,2]
[312950319,1706511045775,-599.97264496,0.00022897,2]
[312950320,1706511045784,-163.73265907,0.00022999,2]
[312950321,1706511045796,-248.90437094,0.00022999,2]
[312950322,1706511045805,-22117.14211488,0.00023,2]
[312950323,1706511045816,-330.5444031,0.00023,2]
[312950324,1706511045828,-497.5,0.00023,2]
[312950325,1706511045853,-719.8,0.00023,2]
[312950326,1706511046021,-644.41986421,0.00023,2]
[312950329,1706511047395,-33661.03876972,0.00023,2]
[312950330,1706511063639,1906.1007,0.00021531,2]
[312950331,1706511079160,2580.84741957,0.00021,2]
[312950332,1706511094412,661.11586812,0.0002162,2]
[312950333,1706511235077,400.0,0.0002,2]
[312950334,1706511263146,152.7,0.00022415,10]
[312950335,1706511454518,161.7,0.00020068,2]
[312950336,1706511536928,223.52635365,0.00021906,4]
[312950337,1706511726596,334.26139543,0.00023,30]
[312950339,1706511902384,161.7,0.00019823,2]
[312950340,1706512173856,211.0,0.0002125,2]
[312950341,1706512215556,-166.322826,0.00022766,4]
[312950345,1706512231958,-525.21451856,0.00021731,2]
[312950346,1706512231969,-203.76527707,0.00021731,2]
[312950347,1706512231978,-630.29094218,0.00021731,2]
[312950348,1706512231988,-3288.4524493,0.00021731,2]
[312950349,1706512232000,-502.24649867,0.00021731,2]
[312950350,1706512232012,-252.26,0.00021731,2]
[312950355,1706512237807,-3395.54794444,0.00021731,2]
[312950356,1706512237864,-419.6410628,0.00021731,2]
[312950357,1706512237919,-977.46048853,0.00021731,2]
[312950358,1706512237975,-1689.36168298,0.00021731,2]
[312950359,1706512237985,-4636.68729824,0.00021732,2]
[312950360,1706512237994,-279.94615861,0.00021733,2]
[312950361,1706512238007,-500.0,0.00021733,2]
[312950362,1706512238016,-2605.49270958,0.00021734,2]
[312950363,1706512238026,-489.299569,0.00021734,2]
[312950364,1706512238036,-156.0,0.00021738,2]
[312950365,1706512238045,-2000.0,0.00021766,2]
[312950366,1706512238055,-737.6,0.00021772,2]
[312950367,1706512238064,-193.07,0.00021773,2]
[312950368,1706512238074,-159.29715612,0.00021778,2]
[312950369,1706512238083,-23840.0,0.00021801,2]
[312950370,1706512238093,-909.01,0.00021841,2]
[312950371,1706512238102,-156.64,0.00021893,2]
[312950372,1706512238111,-262.4,0.00021907,2]
[312950373,1706512238121,-250.0,0.00021918,2]
[312950374,1706512238130,-10000.0,0.00021918,2]
[312950375,1706512238139,-6679.88111164,0.00021918,2]
[312950376,1706512238149,-2390.48456603,0.00022079,2]
[312950377,1706512238158,-4082.0,0.00022092,2]
[312950378,1706512238167,-150.0,0.00022696,2]
[312950379,1706512238177,-150.0,0.00022742,2]
[312950380,1706512238189,-499.99,0.0002277,2]
[312950381,1706512238198,-850.26695974,0.0002277,3]
[312950382,1706512238207,-150.0,0.00022777,2]
[312950383,1706512238216,-150.0,0.0002278,2]
[312950384,1706512238225,-2306.5548,0.000228,2]
[312950385,1706512238234,-150.0,0.00022814,2]
[312950386,1706512238243,-302.63597908,0.00022817,2]
[312950387,1706512238253,-151.40277149,0.00022841,2]
[312950388,1706512238262,-150.0,0.00022867,2]
[312950389,1706512238271,-150.0,0.00022874,2]
[312950390,1706512238280,-857.92322728,0.00022898,2]
[312950391,1706512238289,-1577.6945,0.000229,2]
[312950392,1706512238298,-323.48039792,0.000229,2]
[312950393,1706512238308,-153.64125112,0.00022904,2]
[312950394,1706512238317,-150.0,0.00022905,2]
[312950395,1706512238327,-194.65996241,0.00022924,2]
[312950396,1706512238336,-150.0,0.00022926,2]
[312950397,1706512238345,-150.0,0.00022926,2]
[312950398,1706512238355,-150.0,0.00022932,2]
[312950399,1706512238365,-150.0,0.0002294,2]
[312950400,1706512238375,-150.0,0.00022961,2]
[312950401,1706512238385,-150.0,0.00022994,2]
[312950402,1706512238395,-150.0,0.00022996,2]
[312950403,1706512238405,-306.39880467,0.00022996,2]
[312950404,1706512238414,-376.04252086,0.00022996,2]
[312950405,1706512238425,-391.00097642,0.00022996,2]
[312950406,1706512238434,-156.37020698,0.00022996,2]
[312950407,1706512238443,-235.4281896,0.00022996,2]
[312950408,1706512238453,-163.24557979,0.00022996,2]
[312950409,1706512238462,-266.83701743,0.00022996,2]
[312950410,1706512238472,-155.72545251,0.00022996,2]
[312950411,1706512238481,-1043.46193915,0.00022996,2]
[312950412,1706512238491,-291.7796317,0.00022996,2]
[312950413,1706512238500,-379.47065826,0.00022996,2]
[312950414,1706512238510,-262.51715635,0.00022996,2]
[312950415,1706512238519,-24374.22356804,0.00022996,2]
[312950416,1706512238528,-479.07565472,0.00022996,2]
[312950417,1706512238538,-247.77391638,0.00022996,2]
[312950418,1706512238547,-155.70377423,0.00022996,2]
[312950419,1706512238556,-155.7879589,0.00022996,2]
[312950420,1706512238565,-339.34422661,0.00022996,2]
[312950421,1706512238575,-400.0,0.00022996,2]
[312950422,1706512238584,-1000.0,0.00022996,2]
[312950423,1706512238594,-155.66016805,0.00022996,2]
[312950424,1706512238603,-158.22229568,0.00022996,2]
[312950425,1706512238613,-3145.34192243,0.00022997,2]
[312950426,1706512238622,-1718.86260588,0.00022998,3]
[312950427,1706512238631,-1060.86936771,0.00022998,2]
[312950428,1706512238641,-17323.88300168,0.00022998,2]
[312950451,1706512240348,-810.89801584,0.00022998,2]
[312950452,1706512240361,-287256.67335299,0.00022998,2]
[312950453,1706512240404,-1048.582763,0.00022998,2]
[312950454,1706512240416,-500.4773228,0.00022998,2]
[312950455,1706512240430,-2710.38515923,0.00022998,2]
[312950456,1706512240442,-2203.4,0.00022998,2]
[312950457,1706512240920,-347.96609508,0.00022998,2]
[312950458,1706512241111,-187769.45737932,0.00022998,2]
[312950459,1706512241121,-428.94813868,0.00022998,2]
[312950460,1706512241130,-1055.88684078,0.00022998,2]
[312950461,1706512241140,-11427.5725402,0.00022998,2]
[312950462,1706512241149,-2104.59306436,0.00022999,2]
[312950463,1706512241159,-412.63703001,0.00022999,2]
[312950464,1706512241169,-1555.69886959,0.00022999,2]
[312950465,1706512241179,-165.9,0.00022999,2]
[312950466,1706512241188,-197.67160566,0.00022999,2]
[312950467,1706512241198,-176.6101217,0.00022999,2]
[312950468,1706512241207,-154988.56751927,0.00023,2]
[312950469,1706512241234,-655.74303858,0.00023,2]
[312950470,1706512241245,-457.69538554,0.00023,2]
[312950471,1706512241257,-6339.54121197,0.00023,2]
[312950472,1706512241269,-2397.11064171,0.00023,2]
[312950473,1706512241279,-410.44886537,0.00023,2]
[312950474,1706512241291,-500.0,0.00023,2]
[312950475,1706512241303,-1003.471,0.00023,2]
[312950476,1706512241314,-470.2,0.00023,2]
[312950477,1706512241325,-548.1,0.00023,2]
[312950478,1706512241338,-454.06151481,0.00023,2]
[312950494,1706512243605,-1500.0,0.00023,2]
[312950501,1706512243660,-36147.30255196,0.00023,2]
[312950507,1706512243769,-3466.25439248,0.00023,2]
[312950508,1706512243883,-76365.63936374,0.00023,2]
[312950509,1706512243894,-116555.85536102,0.00023,2]
[312950510,1706512243905,-3825.64973441,0.00023,2]
[312950520,1706512245826,-542.7042283,0.00023,2]
[312950521,1706512245838,-1154.62306119,0.00023,2]
[312950522,1706512245875,-4391.53029204,0.00023,2]
[312950523,1706512245887,-2609.23511465,0.00023,2]
[312950524,1706512245900,-3000.00888646,0.00023,2]
[312950525,1706512246036,-299.975,0.000229,2]
[312950526,1706512246046,-510.14690284,0.000229,2]
[312950527,1706512246055,-523.2562275,0.00023,2]
[312950528,1706512246325,-11563.77202707,0.00023,2]
[312950529,1706512246336,-1000.0,0.00023,2]
[312950530,1706512246360,-1000.0,0.00023,2]
[312950531,1706512293757,206.0,0.0002125,2]
[312950532,1706512365182,153.77,0.00020449,2]
[312950533,1706512367702,487.02300014,0.0002163,2]
[312950534,1706512367726,143.26794204,0.0002163,2]
[312950535,1706512393451,914.5250581,0.0002163,2]
[312950536,1706512393474,452.11179266,0.0002163,2]
[312950537,1706512455541,-500.0,0.00021631,2]
[312950538,1706512455566,-10524.97012672,0.00021632,2]
[312950539,1706512455590,-1841.35928559,0.00021633,2]
[312950540,1706512455614,-300.0,0.00021635,2]
[312950541,1706512455640,-1668.18,0.00021736,2]
[312950542,1706512455665,-165.49058769,0.00021848,2]
[312950543,1706512483195,-1000.0,0.00021847,2]
[312950544,1706512493299,164.12,0.00017735,2]
[312950546,1706512807816,153.77,0.00019667,2]
[312950547,1706512830756,287.79120748,0.00021584,2]
[312950548,1706512830782,1057.79300014,0.00021584,2]
[312950549,1706512830806,44.56579238,0.00021584,2]
[312950550,1706512923527,937.85,0.00021566,2]
[312950551,1706512938686,75.37720776,0.00021576,2]
[312950552,1706512938711,121.92279224,0.00021576,2]
[312950553,1706512965788,164.12,0.00017279,2]
[312950554,1706513001354,193.07,0.0002157,2]
[312950555,1706513029081,578.6802079,0.00021594,2]
[312950556,1706513029103,662.3297921,0.00021594,2]
[312950557,1706513188937,395.46320804,0.0002158,2]
[312950558,1706513188961,604.53679196,0.0002158,2]
[312950559,1706513218120,176.71,0.00016712,2]
[312950560,1706513256888,153.77,0.00019688,2]
[312950561,1706513266429,122.77620818,0.00021574,2]
[312950562,1706513266454,1035.67379182,0.00021574,2]
[312950563,1706513346972,22.11920832,0.0002163,2]
[312950564,1706513346997,132.88079168,0.0002163,2]
[312950565,1706513354930,500.0,0.0002163,2]
[312950566,1706513361341,155.0,0.0002163,2]
[312950567,1706513367457,269.91220846,0.00021574,2]
[312950568,1706513367480,109.88592992,0.00021574,2]
[312950569,1706513369023,1815.96859183,0.0002163,2]
[312950570,1706513376519,266.08055223,0.0002163,2]
[312950571,1706513392721,155.0,0.0002163,2]
[312950572,1706513398408,250.85796615,0.00021629,2]
[312950573,1706513399904,310.84360459,0.0002163,2]
[312950579,1706513431983,-155.0,0.00021635,2]
[312950580,1706513431993,-178.00815705,0.00021636,2]
[312950581,1706513432022,-1460.75587726,0.00021636,2]
[312950582,1706513432033,-987.36121988,0.00021636,2]
[312950583,1706513432042,-300.0,0.00021637,2]
[312950584,1706513432051,-150.0,0.00021637,2]
[312950585,1706513432060,-14667.86294866,0.00021638,2]
[312950586,1706513432189,-6699.0657323,0.00021638,2]
[312950587,1706513432202,-2547.93659347,0.00021638,2]
[312950588,1706513432215,-677.95451397,0.00021638,2]
[312950589,1706513432250,-2172.92551066,0.00021638,2]
[312950590,1706513432261,-951.91076026,0.00021638,2]
[312950591,1706513438053,-1157.62072615,0.00021638,2]
[312950592,1706513438394,-253.89399304,0.00021638,2]
[312950593,1706513438406,-858.74623956,0.00021638,2]
[312950594,1706513438452,-454.23112176,0.00021638,2]
[312950595,1706513438465,-2145.76887824,0.00021638,2]
[312950596,1706513438477,-276.20150599,0.00021638,2]
[312950597,1706513438488,-462.2961555,0.00021638,2]
[312950598,1706513438516,-112.66737143,0.00021638,2]
[312950599,1706513438526,-996.56657017,0.00021652,2]
[312950600,1706513438571,-3.43342983,0.00021652,2]
[312950601,1706513438581,-2078.69,0.00021653,2]
[312950602,1706513438590,-165.56,0.00021713,2]
[312950603,1706513438599,-2414.26,0.00021737,2]
[312950604,1706513438608,-499.99,0.00021737,2]
[312950605,1706513438617,-169.8,0.00021819,2]
[312950606,1706513438627,-235.19487127,0.00021848,2]
[312950607,1706513438636,-4641.48,0.00021918,2]